Cogmind - Beta 15 @@@ ROGUE MODE // 2025.05.13 @ 11:49:32 Player: Val Result: Destroyed by D-53 Grenadier with Mini Grenade Launcher Performance ------------- Evolutions (0) 0 Regions Visited (2) 400 Robots Destroyed (5) 25 Value Destroyed (82) 82 Prototype IDs (0) 0 Alien Tech Used (0) 0 Bonus (0) 0 TOTAL SCORE: 507 Bonus ------- None Cogmind --------- Core Integrity 0/250 Matter 300/300 Energy 99/100 System Corruption 0% Temperature Cool (0) Movement Core (150) Ox2 Location -10/Mines Parts ------- > --- POWER (1) -------- (None) > --- PROPULSION (2) --- (None) > --- UTILITY (2) ------ Small Storage Unit > --- WEAPON (2) ------- Hammer > --- INVENTORY (8) ---- Light Ion Engine Light Treads High-capacity Storage Unit Medium Laser Small Laser Particle Gun Light Assault Rifle Datajack Peak State ------------ > --- POWER ------------ Light Nuclear Core > --- PROPULSION ------- Light Treads Light Treads > --- UTILITY ---------- Improved Heat Sink Small Storage Unit > --- WEAPON ----------- Beam Cannon Hammer > --- INVENTORY -------- Light Ion Engine Light Treads High-capacity Storage Unit Medium Laser Small Laser Small Laser Light Assault Rifle Datajack [Rating: 11] Favorites ----------- Power Light Ion Engine Engine Light Ion Engine Power Core Light Nuclear Core Propulsion Light Treads Treads Light Treads Utility Small Storage Unit Device Improved Heat Sink Storage Small Storage Unit Weapon Hammer Energy Gun Medium Laser Energy Cannon Beam Cannon Impact Weapon Hammer Build | -11 -10 -10 ------- Run | Yrd Mat Min Slots Evolved . | . . . Power . | . . . Propulsion . | . . . Utility . | . . . Weapon . | . . . Parts Attached 11 | 6 2 3 Power 3 | 1 . 2 Engine 2 | 1 . 1 Core 1 | . . 1 Reactor . | . . . Propulsion 2 | 2 . . Treads 2 | 2 . . Leg . | . . . Wheel . | . . . Hover . | . . . Flight . | . . . Utility 2 | 1 . 1 Device 1 | . . 1 Storage 1 | 1 . . Processor . | . . . Hackware . | . . . Protection . | . . . Artifact . | . . . Weapon 4 | 2 2 . Energy Gun 2 | 2 . . Energy Cannon 1 | . 1 . Ballistic Gun . | . . . Ballistic Cannon . | . . . Launcher . | . . . Special Weapon . | . . . Impact Weapon 1 | . 1 . Slashing Weapon . | . . . Piercing Weapon . | . . . Special Melee Weapon . | . . . Unidentified Prototypes . | . . . Parts Lost 5 | . . 5 Power 1 | . . 1 Propulsion 2 | . . 2 Utility 1 | . . 1 Weapon 1 | . . 1 Highest Loss Streak 5 | . . 5 To Critical Strikes . | . . . Average Backups 6 | 1 5 7 Power . | . 1 1 Propulsion . | . . 1 Utility . | . . 1 Weapon 2 | 1 2 3 Tool/Special . | . . . Unused Backups 7 | . . 7 Power 1 | . . 1 Propulsion 1 | . . 1 Utility 1 | . . 1 Weapon 3 | . . 3 Tool/Special 1 | . . 1 Average Slot Usage (%) 90 | . 85 93 Engine 10 | . 14 7 Core 3 | . . 5 Treads 27 | . 28 27 Device 5 | . . 10 Storage 14 | . 14 14 Energy Gun 6 | . 15 . Energy Cannon 9 | . 2 14 Impact Weapon 12 | . 10 14 Peak Build Rating 11 | 6 6 11 Average Rating 7 | 3 6 8 On Entrance 4 | . 6 6 Naked Turns . | . . . Heaviest Build 16 | 11 13 16 Greatest Support 40 | 40 40 40 Greatest Overweight (x) 3 | . . 3 Average Overweight (x) . | . . . Largest Inventory Capacity 8 | 8 8 8 Average Capacity 7 | 6 8 8 Most Carried 8 | 5 8 8 Average Carried 6 | 2 5 7 Final Capacity 8 | 8 8 8 Final Carried 8 | 2 8 8 Class Distribution -------------------- 100% | Mutant Dominant Class ---------------- Mutant | -10/Materials Mutant | -10/Mines Resources | -11 -10 -10 ----------- Run | Yrd Mat Min Matter Collected 307 | 225 55 27 Remotely . | . . . Salvage Created 115 | . . 115 Parts 16 | . . 16 Haulers Intercepted . | . . . Recyclers Shooed . | . . . Parts Field Recycled . | . . . Retrieved Matter . | . . . Parts Self-Destructed . | . . . Prevented . | . . . Kills | -11 -10 -10 ------- Run | Yrd Mat Min Combat Hostiles Destroyed 4 | . . 4 Cannons 4 | . . 4 Classes Destroyed 3 | . . 3 Builder 1 | . . 1 Swarmer 3 | . . 3 Grunt 1 | . . 1 Best Kill Streak 4 | . . 4 Combat Bots Only 3 | . . 3 Max Kills in Single Turn 1 | . . 1 Gunslinging . | . . . Exploded . | . . . Melee . | . . . Uniques/NPCs Destroyed . | . . . Combat | -11 -10 -10 -------- Run | Yrd Mat Min Hostile Shots Fired 63 | . . 63 Missed 14 | . . 14 Hits 49 | . . 49 Projectile 49 | . . 49 AOE 15 | . . 15 Damage Taken 846 | . . 846 Core 259 | . . 259 Absorbed by Shields . | . . . Core Remaining (%) 100 | 100 . . Volleys Fired 18 | . . 18 Largest 1 | . . 1 Hottest 60 | . . 60 Shots Fired 18 | . . 18 Gun . | . . . Cannon 18 | . . 18 Launcher . | . . . Special . | . . . Kinetic . | . . . Thermal 18 | . . 18 Explosive . | . . . Electromagnetic . | . . . Robot Hit Streak 4 | . . 4 Robot Miss Streak 4 | . . 4 Penetration Max . | . . . Secondary Targets . | . . . Shots Hit Robots 10 | . . 10 Core Hits 6 | . . 6 Critical Kills . | . . . Critical Parts Destroyed . | . . . Critical Strikes . | . . . Melee Attacks . | . . . Impact . | . . . Slashing . | . . . Piercing . | . . . Sneak Attacks . | . . . Combat Hostiles . | . . . Follow-up Attacks . | . . . Damage Inflicted 194 | . . 194 Guns . | . . . Cannons 194 | . . 194 Explosions . | . . . Melee . | . . . Ramming . | . . . Kinetic . | . . . Thermal 194 | . . 194 Explosive . | . . . Electromagnetic . | . . . Impact . | . . . Slashing . | . . . Piercing . | . . . Highest Corruption . | . . . Average Corruption . | . . . Corruption Purged . | . . . Corruption Blocked . | . . . Overload Shots . | . . . Overflow Damage . | . . . Projectiles . | . . . Explosions . | . . . Melee . | . . . Knockbacks . | . . . Impact . | . . . Kinetic . | . . . Secondary . | . . . Self-Inflicted Damage . | . . . Shots . | . . . Rammed . | . . . Targets Rammed . | . . . Kicked . | . . . Crushed . | . . . Highest Temperature 127 | . . 127 Average Temperature 66 | . . 66 Received Heat Transfer 33 | . . 33 Siege Activations . | . . . Martial Activations . | . . . Shielding Activations . | . . . Robots Disrupted . | . . . Combat Hostiles . | . . . Robots Corrupted . | . . . Combat Hostiles . | . . . Parts Fried . | . . . Impact Corruptions . | . . . Robots Melted . | . . . Combat Hostiles . | . . . Parts Melted 2 | . . 2 Heat Transferred 407 | . . 407 Parts Sabotaged . | . . . Parts Stolen . | . . . Parts Stripped . | . . . Power Chain Reactions . | . . . Alert | -11 -10 -10 ------- Run | Yrd Mat Min Maximum Alert Level . | . . . Low Security (%) 100 | 100 100 100 Level 1 . | . . . Level 2 . | . . . Level 3 . | . . . Level 4 . | . . . Level 5 . | . . . High Security . | . . . Max Security . | . . . Peak Influence 60 | . 5 60 Initial . | . . . Average 9 | . . 17 Influence Increases 125 | . 5 120 Destroy 0b10 Robot/C 80 | . . 80 Destroy 0b10 Robot/NC 5 | . . 5 Destroy Leader 20 | . . 20 Successful Hack 5 | . 5 . Lose Combat Pursuer 15 | . . 15 Influence Decreases 125 | . 5 120 Time Decay 115 | . 5 110 Lost Part 10 | . . 10 Squads Dispatched 1 | . 1 . Investigation 1 | . 1 . Extermination . | . . . Reinforcement . | . . . Assault . | . . . Garrison . | . . . Intercept . | . . . Searches Triggered . | . . . Construction Impeded . | . . . Haulers Reinforced . | . . . Active Scanning Responses . | . . . Cargo Convoy Interrupts . | . . . Stealth | -11 -10 -10 --------- Run | Yrd Mat Min Distress Signals 2 | . 2 . Communications Jammed . | . . . Distress Signals . | . . . Times Spotted 7 | . . 7 Peak Tracking Total 3 | . . 3 Tactical Retreats 1 | . . 1 Traps | -11 -10 -10 ------- Run | Yrd Mat Min Traps Triggered . | . . . Indirectly . | . . . Trap Hack Attempts . | . . . Triggered . | . . . Disarmed . | . . . Reprogrammed . | . . . Reused . | . . . Traps Extracted . | . . . Installed . | . . . Triggered . | . . . Machines | -11 -10 -10 ---------- Run | Yrd Mat Min Machines Disabled . | . . . Max in Single Turn . | . . . Machines Repaired . | . . . Machines Dismantled . | . . . Machines Sabotaged . | . . . Overloaded Fab Kills . | . . . Hacking | -11 -10 -10 --------- Run | Yrd Mat Min Machines Accessed 2 | . 2 . Terminals 2 | . 2 . Fabricators . | . . . Repair Stations . | . . . Recycling Units . | . . . Scanalyzers . | . . . Garrison Access . | . . . Total Hacks 2 | . 2 . Successful 2 | . 2 . Failed . | . . . Catastrophic . | . . . Database Lockouts . | . . . Manual . | . . . Terminals 2 | . 2 . Fabricators . | . . . Repair Stations . | . . . Recycling Units . | . . . Scanalyzers . | . . . Garrison Access . | . . . Terminal Hacks 2 | . 2 . Record 1 | . 1 . Zone Layout 1 | . 1 . Fabricator Hacks . | . . . Repair Station Hacks . | . . . Recycling Unit Hacks . | . . . Scanalyzer . | . . . Garrison Access Hacks . | . . . Unauthorized Hacks . | . . . Terminals . | . . . Fabricators . | . . . Repair Stations . | . . . Recycling Units . | . . . Scanalyzers . | . . . Garrison Access . | . . . Data Cores Recovered . | . . . Used . | . . . Hacking Detections . | . . . Full Trace Events . | . . . Feedback Events . | . . . Feedback Blocked . | . . . Robot Schematics Acquired . | . . . Robots Built . | . . . Authchips . | . . . Time . | . . . Total Robot Build Rating . | . . . Part Schematics Acquired . | . . . Parts Built . | . . . Authchips . | . . . Time . | . . . Total Part Build Rating . | . . . Parts Repaired . | . . . Time . | . . . Parts Recycled . | . . . Recycled Matter . | . . . Retrieved Matter . | . . . Retrieved Components . | . . . Parts Scanalyzed . | . . . Part Schematics Acquired . | . . . Parts Damaged . | . . . Bothacking | -11 -10 -10 ------------ Run | Yrd Mat Min Used RIF Installer . | . . . Robots Hacked . | . . . Non-combat . | . . . Combat . | . . . Robot Hacks Applied . | . . . Relay Couplers Released . | . . . Fabnet Peak Effective % . | . . . Robots Rewired . | . . . Allies Hacked . | . . . Hacks Repelled . | . . . Allies | -11 -10 -10 -------- Run | Yrd Mat Min Total Allies . | . . . Largest Group . | . . . Highest-Rated Group . | . . . Highest-Rated Ally . | . . . Total Orders . | . . . Ally Attacks . | . . . Total Damage . | . . . Kills . | . . . Allies Corrupted . | . . . Allies Melted . | . . . Intel | -11 -10 -10 ------- Run | Yrd Mat Min Active Infowar (turns) . | . . . Robot Analysis Total . | . . . Derelict Logs Recovered . | . . . Drone Launches . | . . . Drone Recoveries . | . . . Exploration | -11 -10 -10 ------------- Run | Yrd Mat Min Turns Passed 585 | 56 216 313 Spaces Moved 319 | 32 130 157 Core 11 | 7 . 4 Treads 308 | 25 130 153 Legs . | . . . Wheels . | . . . Hover . | . . . Flight . | . . . Fastest Speed 50 | 50 160 150 Average Speed 157 | 135 160 160 Slowest Speed 200 | 160 160 200 Overloaded Moves . | . . . Propulsion Burnouts . | . . . Robots Hopped . | . . . Potential Cave-ins . | . . . Cave-ins Triggered . | . . . Exploration Rate (%) 30 | 3 45 42 Regions Visited 2 Branch Regions 1 Pre-discovered Areas . | . . . Known Exits Taken . | . . . Unknown Exits Taken 2 | 1 1 . Scrap Searched . | . . . Spaces Dug . | . . . Terrain Destroyed . | . . . Melee . | . . . Projectile . | . . . AOE . | . . . Terrain Rammed . | . . . Walls Destroyed . | . . . Machines Disabled . | . . . Actions | -11 -10 -10 --------- Run | Yrd Mat Min Total 383 | 45 137 201 Wait 18 | . . 18 Move 317 | 31 129 157 Hop . | . . . Pick Up 16 | 8 6 2 Fast Attach 1 | . . 1 Attach 6 | 6 . . Detach . | . . . Swap 4 | . 2 2 Drop 3 | . . 3 Fire 18 | . . 18 Melee . | . . . Ram . | . . . Kick . | . . . Crush . | . . . Escape Stasis . | . . . Rewire . | . . . Trap . | . . . Miscellaneous . | . . . Route ------- -11/Scrapyard -10/Materials -10/Mines History --------- Turn | Location | Event 6 | -11/Scrapyard | Discovered new exit (range 15) 57 | -11/Scrapyard | Entered Materials 58 | -10/Materials | Met a group of wandering Federalists 148 | -10/Materials | Discovered new exit (range 14) 273 | -10/Materials | Entered Mines 317 | -10/Mines | Build established: Mutant 500 | -10/Mines | Found a hidden stash of uninstalled traps 514 | -10/Mines | Assembled infested the area 519 | -10/Mines | Assisted by a Guerilla fighting off Assembled 574 | -10/Mines | Core integrity fell below 50% 579 | -10/Mines | Core integrity fell below 20% 586 | -10/Mines | Destroyed by D-53 Grenadier with Mini Grenade Launcher Last Messages --------------- Demolisher response squad. 00519_ A derelict emerges from the shadows: "You need to get out of here! I've been tracking a group of Assembled to figure out where they're coming from, and they're closing on this area, come on!" 00536_ T-07 Excavator is excavating. 00551_ 1W-DZF(h): "I'll hold them off! Go on ahead or try to find another way!" 00555_ 1W-DZF(h) destroyed. 00557_ K-01 Serf collects debris. 00564_ The unstable cave ceiling collapses. 00565_ K-01 Serf collects debris. 00566_ The unstable cave ceiling collapses. 00567_ Lgt. Ion Engine destroyed. 00567_ K-01 Serf destroyed. 00575_ Lgt. Treads destroyed. 00576_ Imp. Heat Sink destroyed. 00579_ Lgt. Treads destroyed. 00582_ The unstable cave ceiling collapses. 00586_ Beam Cannon destroyed. Map ----- +----------------------------------------------------+ | | | | | | | | | | | | | | | | | | | | | | | | | | | | | | | | | ???????????????????????????######????????????????? | | ????????????????????????### ####?????????????? | | ???????????????????????## # ####??????????? | | ???????????????????????# ! ##?????????? | | ??????????????????????### % #?????????? | | ??????????????????????# d d ##????????? | | ??????????????????????# ###??????? | | ??????????????????????## # ##?????? | | ???????????????????????# # #???##? | | ???????????????????????# @ # #???# # | | ???????????????????????# # #???? | | ???????????????????????## ##? # ##????# | | ????????????????????????# #??#### ##???# | | ????????????????????????# #?????# #???# | | ????????????????????????# #?????# # ####### | | ????????????????????????# #???? # ## | | ????????????????????????#$#???# # | | ??????????????????????### ###?# #### ## | | ?????????????????????? # #%! #??# ## | | ?????????????????????? #??# | | ?????????????????????????# #??# ## | | ???????????????????????????## [ ##??# #? | | ???????????????????????######## % *[ ##??? #? | | ???????????????????????# " *%##????###? | | ???????????????????????# %=% ##????????? | | ???????????#???????????# ######= ###?????????? | | ???????????? ??????????# #????# ##???????????? | | ????????????# ?###?????# #????# #????????????? | | ????????##### ## #????# #????## ##????????????? | | ???????## #???# #?????####?????????????? | | ???????# #### #??????????????????????? | | ???????# #??????????????????????? | | ???????+ #??????????????????????? | | ???????+ ####??????????????????????? | +----------------------------------------------------+ Best States ------------- Heat Dissipation 39 Energy Generation 14 Energy Capacity 160 Matter Stores 300 Matter Capacity 300 Sight Range 16 Terrain Scan Density 10 Evasion (%) 40 Recoil Reduction 2 Item Schematics ----------------- None Robot Schematics ------------------ None Fabricated ------------ Nothing Repaired ---------- Nothing Alien Tech Used ----------------- None Achievements -------------- None Challenges ------------ None Game ------ Seed LightpackNuclearDoublenader Manual? 0 Play Time 00:08:01 Cumulative 18.1 hours Start 2025.05.13 @ 11:43:18 End 2025.05.13 @ 11:49:32 Sessions 1 Manual Loads 0 Difficulty Rogue Special Mode None Game No. 28 Rogue 28 Adventurer 0 Explorer 0 Win Type - Total 0 Types 0/0/0/0/0/0/0/0/0/0 Lore% 7 Gallery% 22 Achievement% 22 Wizard Run 0 Options --------- Layout 1 ASCII 0 Keyboard 0 Movement Mouse Keybinds 0 Fullscreen 1 Font 32/SmallcapsGlow Map View 27x23 Zoom Use 97% Tactical HUD 1 Map Filters NONE Filters NONE Steam 1 RUN: 326c09bc-8f54-4a39-83f6-eb56ccd2ab95